[Event "45th FIDE Olympiad 2024"]
[Site "Budapest"]
[Date "2024.09.12"]
[Round "2.32"]
[White "Garcia, Jan Emmanuel"]
[Black "Svane, Frederik"]
[Result "0-1"]
[ECO "E11"]
[WhiteElo "2380"]
[BlackElo "2640"]
[Annotator "RC"]
[PlyCount "206"]
[EventDate "2024.09.05"]
[EventType "team-tourn"]
[EventCountry "HUN"]
[SourceTitle "playchess.com"]
[Source "ChessBase"]
[SourceQuality "1"]
[WhiteTeam "Philippines"]
[BlackTeam "Germany"]
[WhiteTeamCountry "PHI"]
[BlackTeamCountry "GER"]
[TimeControl "40/5400+30:1800+30"]

1. Nf3 {[%emt 0:00:04]} Nf6 {[%emt 0:00:23]} 2. c4 {[%emt 0:00:14]} e6 {[%emt 0:00:08]} 3. g3 {[%emt 0:00:08]} d5 {[%emt 0:00:07]} 4. d4 {[%emt 0:00:28]} Bb4+ {[%emt 0:02:01]} 5. Bd2 {[%emt 0:01:51]} Be7 {[%emt 0:00:30]} 6. Bg2 {[%emt 0:00:10]} O-O {[%emt 0:00:52]} 7. O-O {[%emt 0:00:18]} c6 {[%emt 0:00:17]} 8. Qc2 {[%emt 0:00:55]} Nbd7 {[%emt 0:00:24]} 9. Rd1 {[%emt 0:01:04]} h6 {[%emt 0:01:46]} 10. Bf4 {[%emt 0:03:17]} a5 {[%emt 0:01:28]} 11. b3 {[%emt 0:02:53]} b6 {[%emt 0:22:26]} 12. Ne5 {[%emt 0:18:26]} Nxe5 {[%emt 0:13:37]} 13. dxe5 {[%emt 0:01:31]} Nd7 {[%emt 0:00:01]} 14. cxd5 {[%emt 0:02:25]} cxd5 {[%emt 0:00:01]} 15. e4 {[%emt 0:06:49]} d4 {[%emt 0:00:45]} 16. Rxd4 {[%emt 0:00:23]} Bc5 {[%emt 0:02:22]} 17. Rd1 {[%emt 0:01:14]} Ba6 {[%emt 0:05:03]} 18. Nc3 {[%emt 0:25:11]} g5 {[%emt 0:02:40]} 19. Bc1 {[%emt 0:12:04]} Rc8 {[%emt 0:05:48]} 20. Bb2 {[%emt 0:01:15]} Qe7 {[%emt 0:14:45]} 21. Bf1 {[%emt 0:05:02]} Bxf1 {[%emt 0:02:22]} 22. Kxf1 {[%emt 0:00:26]} Nxe5 {[%emt 0:00:11]} 23. Qe2 {[%emt 0:01:03]} Ba3 {[%emt 0:04:35]} 24. Bxa3 {[%emt 0:02:54]} Qxa3 {[%emt 0:00:01]} 25. Nb5 {[%emt 0:00:32]} Qc5 {[%emt 0:01:00]} 26. Na7 {[%emt 0:01:43]} Rcd8 {[%emt 0:04:36]} 27. Rac1 {[%emt 0:03:54]} Rxd1+ {[%emt 0:00:30]} 28. Qxd1 {[%emt 0:04:14]} Qb4 {[%emt 0:00:44]} 29. Qe2 {[%emt 0:00:21]} Rd8 {[%emt 0:01:32]} 30. Nc6 {[%emt 0:01:08]} Nxc6 {[%emt 0:02:07]} 31. Rxc6 {[%emt 0:00:02]} Rd2 {[%emt 0:00:48]} 32. Rc8+ {[%emt 0:01:22]} Kg7 {[%emt 0:00:27]} 33. Qf3 {[%emt 0:00:11]} Qb5+ {[%emt 0:05:02]} 34. Kg2 {[%emt 0:00:23]} Rd3 {[%emt 0:00:05]} 35. Qg4 {[%emt 0:00:50]} Rd2 {[%emt 0:02:21]} 36. Qf3 {[%emt 0:00:04]} Rd3 {[%emt 0:02:05]} 37. Qg4 {[%emt 0:00:02]} Qe5 {[%emt 0:00:23]} 38. Qe2 {[%emt 0:00:21]} Qd4 {[%emt 0:01:16]} 39. Rc4 {[%emt 0:01:13]} Rd2 {[%emt 0:00:10]} 40. Rxd4 {[%emt 0:03:22]} Rxe2 {[%emt 0:00:04]} 41. Rd6 {[%emt 0:10:37]} b5 {[%emt 0:00:49]} 42. Ra6 {[%emt 0:01:58]} Rxa2 {[%emt 0:01:25]} 43. b4 {[%emt 0:00:04]} Ra4 {[%emt 0:06:21]} 44. bxa5 {[%emt 0:00:25]} Rxe4 {[%emt 0:00:12]} 45. Rb6 {[%emt 0:00:07]} Rb4 {[%emt 0:00:04]} 46. a6 {[%emt 0:00:18]} Ra4 {[%emt 0:05:29]} 47. Rxb5 {[%emt 0:00:36]} Rxa6 {[%emt 0:00:01]} 48. Rb4 {[%emt 0:01:11]} h5 {[%emt 0:03:33]} 49. h4 {[%emt 0:01:26]} g4 {[%emt 0:00:09]} 50. Rb5 {[%emt 0:00:08]} Kg6 {[%emt 0:00:05]} 51. Rg5+ {[%emt 0:00:20]} Kh6 {[%emt 0:00:01]} 52. Rg8 {[%emt 0:00:09]} Ra5 {[%emt 0:00:05]} 53. Rh8+ {[%emt 0:00:10]} Kg7 {[%emt 0:00:17]} 54. Re8 {[%emt 0:00:10]} Rd5 {[%emt 0:00:36]} 55. Ra8 {[%emt 0:00:08]} Kf6 {[%emt 0:00:22]} 56. Rg8 {[%emt 0:00:34]} Rf5 {[%emt 0:02:25]} 57. Kf1 {[%emt 0:00:50]} Re5 {[%emt 0:00:29]} 58. Kg2 {[%emt 0:00:19]} Rd5 {[%emt 0:01:08]} 59. Kf1 {[%emt 0:00:45]} Kf5 {[%emt 0:00:58]} 60. Ra8 {[%emt 0:01:02]} Ke4 {[%emt 0:02:20]} 61. Ra7 {[%emt 0:02:09]} f5 {[%emt 0:05:26]} 62. Ra1 {[%emt 0:03:30]} Rd2 {[%emt 0:01:34]} 63. Kg2 {[%emt 0:01:28]} e5 {[%emt 0:00:35]} 64. Ra4+ {[%emt 0:00:26]} Rd4 {[%emt 0:00:18]} 65. Ra8 {[%emt 0:01:17]} Rc4 {[%emt 0:07:39]} 66. Rd8 {[%emt 0:01:14]} Rc1 {[%emt 0:00:33]} 67. Re8 {[%emt 0:00:31]} Rc5 {[%emt 0:00:05]} 68. Rh8 {[%emt 0:01:38]} f4 {[%emt 0:00:30]} 69. gxf4 {[%emt 0:00:19]} exf4 {[%emt 0:00:01]} 70. Re8+ {[%emt 0:00:18]} Kd4 {[%emt 0:01:04]} 71. Rd8+ {[%emt 0:01:18]} Rd5 {[%emt 0:00:09]} 72. Rf8 {[%emt 0:02:11]} Ke4 {[%emt 0:00:06]} 73. Re8+ {[%emt 0:00:20]} Kd3 {[%emt 0:00:10]} 74. Rf8 {[%emt 0:02:27]} Rd4 {[%emt 0:02:34]} 75. Ra8 {[%emt 0:01:04]} Rd5 {[%emt 0:01:32]} 76. Rf8 {[%emt 0:00:05]} Ke4 {[%emt 0:00:05]} 77. Re8+ {[%emt 0:00:19]} Re5 {[%emt 0:01:03]} 78. Rf8 {[%emt 0:00:22]} Ra5 {[%emt 0:02:06]} 79. Re8+ {[%emt 0:00:15]} Kf5 {[%emt 0:00:03]} 80. Rf8+ {[%emt 0:00:11]} Ke5 {[%emt 0:00:02]} 81. Re8+ {[%emt 0:00:11]} Kd5 {[%emt 0:00:54]} 82. Rd8+ {[%emt 0:02:36]} Ke6 {[%emt 0:00:18]} 83. Re8+ {[%emt 0:06:01]} Kf7 {[%emt 0:00:30]} 84. Rb8 {[%emt 0:00:33]} Kg6 {[%emt 0:01:03]} 85. Rb6+ {[%emt 0:00:41]} Kf5 {[%emt 0:00:07]} 86. Rb8 {[%emt 0:00:25]} f3+ {[%emt 0:01:50]} 87. Kg3 {[%emt 0:00:15]} Ra1 {[%emt 0:00:01]} 88. Rb5+ {[%emt 0:00:50]} Ke4 {[%emt 0:00:01]} 89. Rb4+ {[%emt 0:00:11]} Kd3 {[%emt 0:00:01]} 90. Rb3+ {[%emt 0:00:38]} Kc4 {[%emt 0:00:06]} 91. Rb8 {[%emt 0:00:39]} Rh1 {[%emt 0:00:09]} 92. Ra8 {[%emt 0:00:32]} Rh3+ {[%emt 0:00:17]} 93. Kf4 {[%emt 0:00:28]} Rxh4 {[%emt 0:00:02]} 94. Ra5 {[%emt 0:00:33]} Rh2 {[%emt 0:00:06]} 95. Ke3 {[%emt 0:00:28]} Rh1 {[%emt 0:01:24]} 96. Kf4 {[%emt 0:00:22]} Kd3 {[%emt 0:00:27]} 97. Re5 {[%emt 0:00:34]} Rh2 {[%emt 0:00:10]} 98. Re3+ {[%emt 0:00:31]} Kd4 {[%emt 0:00:11]} 99. Re4+ {[%emt 0:00:30]} Kd5 {[%emt 0:00:40]} 100. Re5+ {[%emt 0:00:07]} Kd6 {[%emt 0:00:01]} 101. Ra5 {[%emt 0:00:43]} Rxf2 {[%emt 0:00:06]} 102. Rxh5 {[%emt 0:00:03]} Rg2 {[%emt 0:00:03]} 103. Rf5 {[%emt 0:01:11]} f2 {[%emt 0:00:04]} 0-1

[Event "45th FIDE Olympiad 2024"]
[Site "Budapest"]
[Date "2024.09.12"]
[Round "2.32"]
[White "Li, Yiheng"]
[Black "Henry, Marwa Michael"]
[Result "1-0"]
[ECO "C53"]
[WhiteElo "1893"]
[BlackElo "1715"]
[Annotator "NA"]
[PlyCount "61"]
[EventDate "2024.09.05"]
[EventType "team-tourn"]
[EventCountry "HUN"]
[SourceTitle "playchess.com"]
[Source "ChessBase"]
[SourceQuality "1"]
[WhiteTeam "Hong Kong, China"]
[BlackTeam "Tanzania"]
[BlackTeamCountry "TAN"]
[TimeControl "40/5400+30:1800+30"]

1. e4 e5 2. Nf3 Nc6 3. Bc4 Bc5 4. c3 d6 5. d4 Bb6 6. dxe5 Na5 7. Bb5+ c6 8. Be2 d5 9. b4 Nc4 10. Bxc4 dxc4 11. Qxd8+ Bxd8 12. Nbd2 b5 13. Nd4 Ne7 14. f4 Bb6 15. a4 Bxd4 16. cxd4 f5 17. exf6 gxf6 18. f5 Bd7 19. a5 Rg8 20. Rg1 Rg4 21. h3 Rg3 22. Nf3 Kf7 23. Bf4 Rg7 24. g4 Re8 25. Kf2 h5 26. g5 Nxf5 27. exf5 Bxf5 28. gxf6 Rxg1 29. Rxg1 Rg8 30. Ne5+ Kf8 31. Bh6+ 1-0

[Event "45th FIDE Olympiad 2024"]
[Site "Budapest"]
[Date "2024.09.12"]
[Round "2.33"]
[White "Galaviz Medina, Sion Radamantys"]
[Black "Vitiugov, Nikita"]
[Result "1/2-1/2"]
[ECO "E73"]
[WhiteElo "2488"]
[BlackElo "2676"]
[Annotator "TA"]
[PlyCount "103"]
[EventDate "2024.09.05"]
[EventType "team-tourn"]
[EventCountry "HUN"]
[SourceTitle "playchess.com"]
[Source "ChessBase"]
[SourceQuality "1"]
[WhiteTeam "Mexico"]
[BlackTeam "England"]
[WhiteTeamCountry "MEX"]
[BlackTeamCountry "ENG"]
[TimeControl "40/5400+30:1800+30"]

{[%evp 12,103,30,15,27,29,21,27,21,5,29,25,22,0,26,25,26,20,27,8,3,37,22,18,13,8,25,0,0,0,0,0,0,6,0,0,0,0,0,0,0,0,13,14,27,29,27,0,0,0,0,0,0,0,0,0,0,0,53,55,54,42,56,56,51,53,54,46,56,54,58,57,58,60,60,60,64,66,70,70,70,70,70,70,70,70,71,70,70,70,70,70,70,64]} 1. d4 {[%emt 0:00:02]} Nf6 {[%emt 0:00:13]} 2. c4 {[%emt 0:00:04]} g6 {[%emt 0:00:27]} 3. Nc3 {[%emt 0:00:05]} Bg7 {[%emt 0:00:04]} 4. e4 {[%emt 0:00:05]} d6 {[%emt 0:00:04]} 5. Be2 {[%emt 0:00:03]} O-O {[%emt 0:00:14]} 6. Be3 {[%emt 0:00:03]} Nc6 {[%emt 0:00:18][%cal Bb8c6,Bc6e5,Be5g4][%mdl 32]} 7. d5 {[%emt 0:01:54]} Ne5 {[%emt 0:00:09]} 8. f4 {[%emt 0:00:09]} Neg4 {[%emt 0:00:20]} 9. Bd2 {[%emt 0:00:39] Black must now prevent h3.} Nh6 {[%emt 0:00:32] White has an edge.} 10. Nf3 {[%emt 0:00:06]} c6 {[%emt 0:02:01]} 11. O-O cxd5 {[%emt 0:00:00]} 12. cxd5 {[%emt 0:04:40]} b5 {[%emt 0:00:00][%cal Bb7b5,Bb5b4][%mdl 32]} 13. Bd3 {[%emt 0:01:56][%cal Og1h1]} (13. Nxb5 $2 Qb6+ (13... Nxe4 $2 14. Be3 $17) 14. Nbd4 Nxe4 $19) 13... b4 {[%emt 0:00:10]} 14. Na4 {[%emt 0:01:22][%cal Oa1c1] Wards off Qb6+} Bd7 {[%emt 0:01:55]} 15. Kh1 {[%emt 0:07:08]} (15. Bxb4 Nhg4 16. Bd2 Bxa4 17. Qxa4 Qb6+ 18. Kh1 (18. Qd4 $2 Qxd4+ 19. Nxd4 Nxe4 $19) 18... Nf2+ (18... Qxb2 $2 19. Rab1 $18) 19. Rxf2 Qxf2 $16) 15... Nhg4 {[%emt 0:07:46]} 16. h3 {[%emt 0:25:48]} (16. Bxb4 $2 Ne3 17. Qb3 Qe8 $19) 16... Qa5 {[%emt 0:00:59]} 17. b3 {[%emt 0:01:53]} Bb5 $1 {[%emt 0:00:55]} 18. Bxb5 {[%emt 0:07:11]} Nxe4 {[%emt 0:00:14] [#]} 19. hxg4 {[%emt 0:00:06]} Qxb5 {[%emt 0:00:32]} 20. Rc1 {[%emt 0:04:59]} Ng3+ {[%emt 0:05:29]} 21. Kh2 {[%emt 0:00:56]} Nxf1+ {[%emt 0:00:10]} 22. Qxf1 {[%emt 0:00:02]} Qxd5 {[%emt 0:11:13]} 23. Bxb4 {[%emt 0:03:27]} Rac8 {[%emt 0:08:31]} 24. Re1 {[%emt 0:04:47]} h5 {[%emt 0:06:19]} 25. gxh5 {[%emt 0:08:49]} Qxh5+ {[%emt 0:00:21]} 26. Kg3 {[%emt 0:01:01]} Bf6 {[%emt 0:09:51]} 27. Qd3 {[%emt 0:00:45]} Qf5 {[%emt 0:10:47]} 28. Qxf5 {[%emt 0:02:04]} gxf5 {[%emt 0:00:06]} 29. Nh4 {[%emt 0:18:42]} Rc2 {[%emt 0:11:42] [#] ...Rb8 is the strong threat.} 30. Nxf5 {[%emt 0:02:53]} Rb8 {[%emt 0:01:59]} 31. Ne3 $1 {[%emt 0:03:10]} (31. Nxe7+ Bxe7 32. a3 Bf8 $19) (31. a3 a5 32. Bxa5 (32. Ne3 Rc6 $17) 32... Rxb3+ 33. Re3 Rb5 34. Nxe7+ Bxe7 $17) 31... Rxa2 {[%emt 0:00:10]} 32. Nd5 $36 {[%emt 0:00:04][%cal Oe1e3][%mdl 2048] White has good play.} a5 {[%emt 0:02:06]} 33. Nxf6+ {[%emt 0:00:35]} (33. Bxa5 $2 Rxb3+ 34. Kh2 Rxa4 $19) 33... exf6 {[%emt 0:00:05]} 34. Nc3 {[%emt 0:00:20]} (34. Bxd6 $2 {perishes.} Rxb3+ 35. Kg4 Rxa4 $19) 34... Rc2 {[%emt 0:02:52]} (34... Rb2 $11 35. Bxa5 (35. Bxd6 R8xb3 36. Re3 Rc2 $11) 35... R2xb3) 35. Bxa5 $14 {[%emt 0:00:04]} (35. Bxd6 $2 {loses.} Rxc3+ 36. Kh2 Rb5 (36... Rbxb3 37. Re8+ Kh7 38. Ra8 $19) 37. Re8+ Kg7 38. Bf8+ Kg6 $19) 35... Rxb3 {[%emt 0:01:05][%cal Oc2a2] Strongly threatening ...Ra2!} 36. Re3 {[%emt 0:02:04]} Rbb2 {[%emt 0:02:34]} 37. Kg4 {[%emt 0:00:32] Threatens to win with g3.} Rxg2+ {[%emt 0:03:28]} 38. Kf5 {[%emt 0:00:04][%cal Oa5d8]} Rg6 {[%emt 0:05:19]} 39. Bd8 {[%emt 0:00:12][%mdl 1024] White has compensation.} Kg7 {[%emt 0:00:21]} 40. Nd5 {[%emt 0:00:46]} Rb5 {[%emt 0:05:59]} 41. Rd3 {[%emt 0:30:11]} Rh6 {[%emt 0:07:00]} 42. Ke4 {[%emt 0:00:00]} f5+ {[%emt 0:11:26]} 43. Kxf5 {[%emt 0:00:00]} Rh5+ {[%emt 0:00:05]} 44. Bg5 {[%emt 0:00:00]} f6 {[%emt 0:01:20]} 45. Kg4 {[%emt 0:00:00][%csl LRf6,LRh5]} fxg5 {[%emt 0:01:12]} 46. Kxh5 {[%emt 0:00:00]} gxf4 {[%emt 0:00:04][%cal Of4f3][%mdl 4096] Endgame. KRN-KR} 47. Kg4 {[%emt 0:00:00]} Kf7 {[%emt 0:00:17]} 48. Kxf4 {[%emt 0:00:00]} Ra5 {[%emt 0:00:08]} 49. Kf5 {[%emt 0:00:00]} Rc5 {[%emt 0:00:28] White is slightly better.} 50. Rd1 {[%emt 0:00:00]} Ra5 {[%emt 0:00:06]} 51. Rd2 {[%emt 0:00:00]} Rc5 {[%emt 0:00:06]} 52. Ke4 {[%emt 0:00:25] Weighted Error Value: White=0.03 (flawless) /Black=0.03 (flawless) .  Mistake:       	---       	Black=1      Inaccurate:     	White=1     	---        OK:         	White=25    	Black=28     Best:        	White=5     	Black=4      Strong:       	White=1     	Black=1} 1/2-1/2

[Event "45th FIDE Olympiad 2024"]
[Site "Budapest"]
[Date "2024.09.12"]
[Round "2.33"]
[White "Pg, Md Omar Ak Hafizon"]
[Black "Murphy, Jones"]
[Result "1/2-1/2"]
[ECO "C47"]
[WhiteElo "2159"]
[BlackElo "2021"]
[Annotator "ChessBase"]
[PlyCount "72"]
[EventDate "2024.09.05"]
[EventType "team-tourn"]
[EventCountry "HUN"]
[SourceTitle "playchess.com"]
[Source "ChessBase"]
[SourceQuality "1"]
[WhiteTeam "Brunei Darussalam"]
[BlackTeam "Dominica"]
[BlackTeamCountry "DMA"]
[TimeControl "40/5400+30:1800+30"]

1. e4 e5 2. Nf3 Nc6 3. Nc3 Nf6 4. d4 exd4 5. Nxd4 Bb4 6. Nxc6 bxc6 7. Bd3 d5 8. exd5 cxd5 9. O-O c6 10. h3 O-O 11. Qf3 Be6 12. Bf4 Bd6 13. Rad1 Bxf4 14. Qxf4 Qb8 15. Qxb8 Raxb8 16. Na4 c5 17. Nxc5 Rxb2 18. a4 Rc8 19. Nb3 Nd7 20. f4 Nc5 21. Nxc5 Rxc5 22. Rb1 Rxb1 23. Rxb1 g6 24. g4 Bd7 25. Rb4 Ra5 26. Bb5 Bxb5 27. axb5 Ra2 28. Rd4 Rxc2 29. Rxd5 Rb2 30. f5 Kg7 31. g5 gxf5 32. Rxf5 Kg6 33. Rf6+ Kxg5 34. Rxf7 h5 35. Rxa7 Rxb5 36. Ra4 Rb2 1/2-1/2

[Event "45th FIDE Olympiad 2024"]
[Site "Budapest"]
[Date "2024.09.12"]
[Round "2.34"]
[White "Howell, David W L"]
[Black "Hernandez Guerrero, Gilberto"]
[Result "1-0"]
[ECO "E68"]
[WhiteElo "2677"]
[BlackElo "2482"]
[Annotator "RC"]
[PlyCount "159"]
[EventDate "2024.09.05"]
[EventType "team-tourn"]
[EventCountry "HUN"]
[SourceTitle "playchess.com"]
[Source "ChessBase"]
[SourceQuality "1"]
[WhiteTeam "England"]
[BlackTeam "Mexico"]
[WhiteTeamCountry "ENG"]
[BlackTeamCountry "MEX"]
[TimeControl "40/5400+30:1800+30"]

1. Nf3 {[%emt 0:00:21]} Nf6 {[%emt 0:00:54]} 2. c4 {[%emt 0:01:01]} g6 {[%emt 0:00:46]} 3. g3 {[%emt 0:01:31]} Bg7 {[%emt 0:00:22]} 4. Bg2 {[%emt 0:00:09]} O-O {[%emt 0:01:21]} 5. O-O {[%emt 0:00:27]} d6 {[%emt 0:00:48]} 6. d4 {[%emt 0:01:06]} Nbd7 {[%emt 0:01:18]} 7. Nc3 {[%emt 0:00:47]} e5 {[%emt 0:00:08]} 8. e4 {[%emt 0:00:23]} exd4 {[%emt 0:00:23]} 9. Nxd4 {[%emt 0:00:08]} Re8 {[%emt 0:00:11]} 10. h3 {[%emt 0:01:54]} Nc5 {[%emt 0:00:18]} 11. Re1 {[%emt 0:00:17]} h6 {[%emt 0:00:12]} 12. f3 {[%emt 0:02:40]} Ne6 {[%emt 0:09:41]} 13. Be3 {[%emt 0:18:18]} Nxd4 {[%emt 0:01:42]} 14. Bxd4 {[%emt 0:01:04]} Be6 {[%emt 0:03:08]} 15. Qd3 {[%emt 0:05:45]} c6 {[%emt 0:09:25]} 16. b3 {[%emt 0:18:29]} a6 {[%emt 0:09:54]} 17. a4 {[%emt 0:06:59]} Qa5 {[%emt 0:06:41]} 18. Ne2 {[%emt 0:05:33]} d5 {[%emt 0:04:34]} 19. cxd5 {[%emt 0:03:45]} cxd5 {[%emt 0:00:06]} 20. e5 {[%emt 0:00:11]} Nd7 {[%emt 0:00:41]} 21. f4 {[%emt 0:05:12]} Nc5 {[%emt 0:07:35]} 22. Bxc5 {[%emt 0:04:11]} Qxc5+ {[%emt 0:00:07]} 23. Kh2 {[%emt 0:00:04]} Rac8 {[%emt 0:04:37]} 24. Rac1 {[%emt 0:02:03]} Qa5 {[%emt 0:07:35]} 25. Nd4 {[%emt 0:00:27]} Rxc1 {[%emt 0:00:20]} 26. Rxc1 {[%emt 0:00:07]} Rc8 {[%emt 0:00:11]} 27. Rxc8+ {[%emt 0:15:29]} Bxc8 {[%emt 0:00:08]} 28. Ne2 {[%emt 0:02:46]} Be6 {[%emt 0:03:21]} 29. Nc3 {[%emt 0:00:10]} Qc5 {[%emt 0:08:34]} 30. Nxd5 {[%emt 0:00:36]} Qf2 {[%emt 0:03:09]} 31. b4 {[%emt 0:02:07]} Bf8 {[%emt 0:06:37]} 32. Nf6+ {[%emt 0:00:50]} Kg7 {[%emt 0:00:05]} 33. Ne8+ {[%emt 0:00:16]} Kg8 {[%emt 0:00:18]} 34. Nf6+ {[%emt 0:00:54]} Kg7 {[%emt 0:00:06]} 35. Ne8+ {[%emt 0:00:08]} Kg8 {[%emt 0:00:24]} 36. Nd6 {[%emt 0:00:56]} Qb2 {[%emt 0:02:45]} 37. Nxb7 {[%emt 0:01:09]} Bxb4 {[%emt 0:00:25]} 38. Nd8 {[%emt 0:00:46]} Qd2 {[%emt 0:01:23]} 39. Qe4 {[%emt 0:00:28]} Ba2 {[%emt 0:04:00]} 40. e6 {[%emt 0:00:30]} Qxd8 {[%emt 0:01:23]} 41. exf7+ {[%emt 0:04:21]} Bxf7 {[%emt 0:00:14]} 42. Qxb4 {[%emt 0:00:07]} a5 {[%emt 0:01:36]} 43. Qc3 {[%emt 0:12:07]} Qb6 {[%emt 0:03:22]} 44. h4 {[%emt 0:00:58]} Kh7 {[%emt 0:08:05]} 45. Qd2 {[%emt 0:05:48]} Kg7 {[%emt 0:02:38]} 46. Be4 {[%emt 0:02:23]} Qc5 {[%emt 0:01:14]} 47. Kg2 {[%emt 0:03:26]} Be8 {[%emt 0:03:54]} 48. Qb2+ {[%emt 0:02:01]} Kf7 {[%emt 0:01:53]} 49. Qb3+ {[%emt 0:02:48]} Kg7 {[%emt 0:03:37]} 50. Qb2+ {[%emt 0:00:02]} Kf7 {[%emt 0:00:09]} 51. Qb7+ {[%emt 0:00:16]} Kg8 {[%emt 0:01:34]} 52. Qa8 {[%emt 0:00:53]} Kf8 {[%emt 0:01:08]} 53. Bxg6 {[%emt 0:01:12]} Qc6+ {[%emt 0:00:09]} 54. Qxc6 {[%emt 0:00:06]} Bxc6+ {[%emt 0:00:05]} 55. Kf2 {[%emt 0:00:04]} Bxa4 {[%emt 0:00:07]} 56. Ke3 {[%emt 0:00:16]} Ke7 {[%emt 0:00:26]} 57. Kd4 {[%emt 0:00:17]} Kd6 {[%emt 0:03:41]} 58. g4 {[%emt 0:00:22]} Bd1 {[%emt 0:00:16]} 59. g5 {[%emt 0:00:22]} hxg5 {[%emt 0:00:14]} 60. hxg5 {[%emt 0:02:08]} Bb3 {[%emt 0:03:18]} 61. Bd3 {[%emt 0:00:12]} Bd1 {[%emt 0:03:12]} 62. Bc4 {[%emt 0:00:15]} Bc2 {[%emt 0:00:17]} 63. Bd3 {[%emt 0:00:34]} Bd1 {[%emt 0:00:05]} 64. f5 {[%emt 0:01:01]} a4 {[%emt 0:00:21]} 65. Bc4 {[%emt 0:00:31]} Bc2 {[%emt 0:00:13]} 66. f6 {[%emt 0:00:20]} Bg6 {[%emt 0:01:22]} 67. Kc3 {[%emt 0:00:39]} Bf5 {[%emt 0:01:50]} 68. Kb4 {[%emt 0:00:05]} Bc2 {[%emt 0:00:16]} 69. Ka3 {[%emt 0:00:34]} Kd7 {[%emt 0:00:22]} 70. Bd5 {[%emt 0:00:51]} Kd6 {[%emt 0:00:18]} 71. Ba2 {[%emt 0:00:04]} Kd7 {[%emt 0:00:15]} 72. Kb2 {[%emt 0:00:02]} Bg6 {[%emt 0:00:44]} 73. Bb1 {[%emt 0:01:16]} Be8 {[%emt 0:02:31]} 74. Bf5+ {[%emt 0:00:35]} Kd6 {[%emt 0:00:10]} 75. g6 {[%emt 0:00:24]} Bc6 {[%emt 0:01:41]} 76. Ka3 {[%emt 0:00:07]} Bb5 {[%emt 0:00:20]} 77. Kb4 {[%emt 0:00:58]} Bc6 {[%emt 0:00:05]} 78. Ka3 {[%emt 0:00:05]} Bb5 {[%emt 0:00:06]} 79. Bb1 {[%emt 0:00:29]} Bc4 {[%emt 0:01:22]} 80. Ba2 {[%emt 0:00:17]} 1-0

[Event "45th FIDE Olympiad 2024"]
[Site "Budapest"]
[Date "2024.09.12"]
[Round "2.34"]
[White "Bridet, Robert"]
[Black "Yee, Soon Wei"]
[Result "0-1"]
[ECO "C50"]
[WhiteElo "1697"]
[BlackElo "2219"]
[Annotator "NA RC"]
[PlyCount "28"]
[EventDate "2024.09.05"]
[EventType "team-tourn"]
[EventCountry "HUN"]
[SourceTitle "playchess.com"]
[Source "ChessBase"]
[SourceQuality "1"]
[WhiteTeam "Dominica"]
[BlackTeam "Brunei Darussalam"]
[WhiteTeamCountry "DMA"]
[TimeControl "40/5400+30:1800+30"]

1. e4 e5 2. Nf3 Nc6 3. Bc4 Bc5 4. O-O Nf6 5. Nc3 d6 6. d3 Bg4 7. a3 Nd4 8. Bg5 c6 9. Nb1 Nxf3+ 10. gxf3 Bh3 11. Re1 h6 12. Be3 Nh5 13. Qd2 Qf6 14. b4 Qxf3 0-1

[Event "45th FIDE Olympiad 2024"]
[Site "Budapest"]
[Date "2024.09.12"]
[Round "2.35"]
[White "Cori Quispe, Kevin Joel"]
[Black "Adams, Michael"]
[Result "1/2-1/2"]
[ECO "C90"]
[WhiteElo "2461"]
[BlackElo "2661"]
[Annotator "TA"]
[PlyCount "72"]
[EventDate "2024.09.05"]
[EventType "team-tourn"]
[EventCountry "HUN"]
[SourceTitle "playchess.com"]
[Source "ChessBase"]
[SourceQuality "1"]
[WhiteTeam "Mexico"]
[BlackTeam "England"]
[WhiteTeamCountry "MEX"]
[BlackTeamCountry "ENG"]
[TimeControl "40/5400+30:1800+30"]

{[%evp 27,72,0,0,0,0,0,0,0,0,0,0,0,0,0,0,-1,-5,-15,-8,0,-11,-29,-39,-29,-43,-37,-35,-45,0,0,0,0,0,0,0,0,0,0,0,0,0,0,0,0,0,0,0]} 1. e4 {[%emt 0:00:07]} e5 {[%emt 0:00:06]} 2. Nf3 {[%emt 0:00:10]} Nc6 {[%emt 0:00:06]} 3. Bb5 {[%emt 0:00:26]} a6 {[%emt 0:00:07]} 4. Ba4 {[%emt 0:00:08]} Nf6 {[%emt 0:00:08]} 5. O-O {[%emt 0:00:36]} Be7 {[%emt 0:00:13]} 6. d3 {[%emt 0:01:30]} b5 {[%emt 0:00:13]} 7. Bb3 {[%emt 0:00:06]} d6 {[%emt 0:00:19]} 8. c3 {[%emt 0:00:15]} O-O {[%emt 0:00:23]} 9. Re1 {[%emt 0:00:28]} Na5 {[%emt 0:03:45]} 10. Bc2 {[%emt 0:00:19]} c5 {[%emt 0:00:06]} 11. Nbd2 {[%emt 0:00:33]} Nc6 {[%emt 0:02:59]} 12. Nf1 {[%emt 0:01:15]} Re8 {[%emt 0:01:14]} 13. Ng3 {[%emt 0:00:46]} h6 {[%emt 0:02:41]} 14. h3 {[%emt 0:02:03]} Be6 {[%emt 0:03:37]} 15. d4 {[%emt 0:04:30]} cxd4 {[%emt 0:07:39]} 16. cxd4 {[%emt 0:00:09]} exd4 {[%emt 0:06:26]} 17. Nxd4 {[%emt 0:01:38]} Nxd4 {[%emt 0:00:18]} 18. Qxd4 {[%emt 0:00:06]} Rc8 {[%emt 0:05:42]} 19. Bb3 {[%emt 0:08:14]} d5 {[%emt 0:12:18]} 20. e5 {[%emt 0:07:47]} Bc5 {[%emt 0:00:52]} 21. Qd3 {[%emt 0:07:35] [#]} Ne4 {[%emt 0:00:57]} 22. Nxe4 {[%emt 0:28:58]} dxe4 {[%emt 0:00:06]} 23. Qxe4 {[%emt 0:01:22]} Qd4 {[%emt 0:04:13] Against Be3} 24. Qe2 {[%emt 0:04:21]} Bxb3 {[%emt 0:16:37]} 25. axb3 {[%emt 0:00:07]} Rc6 {[%emt 0:03:16]} 26. Be3 {[%emt 0:12:27]} Qxe5 {[%emt 0:01:15]} 27. Qc2 {[%emt 0:02:39] [#] Black must now prevent Bxc5.} Rec8 {[%emt 0:01:04]} 28. Bxc5 {[%emt 0:00:47] The position is equal.} Rxc5 {[%emt 0:00:14]} 29. Rxe5 {[%emt 0:01:03][%cal Be1e5,Be5f5,Bf5f4,Bf4b4][%mdl 32]} Rxc2 {[%emt 0:00:03]} 30. Rxa6 {[%emt 0:00:29]} Rxb2 $11 {[%emt 0:00:05][%mdl 4096] Endgame. KRR-KRR} 31. Rf5 {[%emt 0:01:21]} Rxb3 {[%emt 0:01:29]} 32. Ra7 {[%emt 0:00:10]} Rf8 {[%emt 0:00:48]} 33. Rb7 {[%emt 0:00:25]} b4 {[%emt 0:00:13]} 34. Rf4 {[%emt 0:00:43]} Rb1+ {[%emt 0:00:18]} 35. Kh2 {[%emt 0:00:06]} b3 {[%emt 0:00:03]} 36. Rfb4 {[%emt 0:00:24]} Rd8 {[%emt 0:00:45] Weighted Error Value: White=0.02 (flawless) /Black=0.03 (flawless) .  Inaccurate:     	---       	Black=1      OK:         	White=12    	Black=10} 1/2-1/2

[Event "45th FIDE Olympiad 2024"]
[Site "Budapest"]
[Date "2024.09.12"]
[Round "2.35"]
[White "Lim Teck Guan, Rodney"]
[Black "Thomas, Larry"]
[Result "1-0"]
[ECO "D06"]
[WhiteElo "1931"]
[BlackElo "1686"]
[Annotator "NA"]
[PlyCount "67"]
[EventDate "2024.09.05"]
[EventType "team-tourn"]
[EventCountry "HUN"]
[SourceTitle "playchess.com"]
[Source "ChessBase"]
[SourceQuality "1"]
[WhiteTeam "Brunei Darussalam"]
[BlackTeam "Dominica"]
[BlackTeamCountry "DMA"]
[TimeControl "40/5400+30:1800+30"]

1. d4 d5 2. c4 Nf6 3. cxd5 Nxd5 4. e4 Nb6 5. Nf3 e6 6. Be2 Be7 7. O-O O-O 8. Nc3 c6 9. a4 a5 10. Be3 N6d7 11. Qd2 b6 12. Rfd1 Ba6 13. d5 Bxe2 14. Nxe2 exd5 15. exd5 Nc5 16. d6 Bf6 17. Bxc5 bxc5 18. Nc3 Nd7 19. Ne4 Re8 20. Nxf6+ Qxf6 21. Re1 Kf8 22. h3 h6 23. Rac1 Re6 24. Rxe6 Qxe6 25. Rc3 Qd5 26. Rd3 Qe6 27. Qc3 Kg8 28. b3 Kf8 29. Kf1 Qe4 30. Nd2 Qb4 31. Nc4 f6 32. Re3 Re8 33. Rxe8+ Kxe8 34. Qe3+ 1-0